Cogmind - Beta 15 @@@ ROGUE MODE // 2025.06.29 @ 23:53:35 Player: Zaros426 Result: Destroyed by Y-54 Guardian with Gatling Laser Performance ------------- Evolutions (0) 0 Regions Visited (4) 800 Robots Destroyed (54) 270 Value Destroyed (1478) 1478 Prototype IDs (19) 380 Alien Tech Used (0) 0 Bonus (46) 46 TOTAL SCORE: 2974 Bonus ------- Follower Combat Kills 46 Cogmind --------- Core Integrity 0/250 Matter 167/300 Energy 100/100 System Corruption 0% Temperature Cool (96) Movement Treading (360) Ox2 Location -7/Recycling Parts ------- > --- POWER (1) -------- (None) > --- PROPULSION (2) --- Spiked Treads Spiked Treads > --- UTILITY (2) ------ Huge Storage Unit Improved Light Armor Plating > --- WEAPON (2) ------- Subdweller Machine Gun Advanced Assault Cannon > --- INVENTORY (25) --- Subdweller Power Source Subdweller Power Source Subdweller Power Source Subdweller Monowheel Subdweller Monowheel Humpback High-capacity Battery (250) Structural Scanner Seismic Detector Transmission Jammer Makeshift Heavy Armor Plating Gun Armor Scrap Shield Authchip [Propulsion] Subdweller Beam Cannon Subdweller Machine Gun Shock Bomb Launcher Subdweller Shrapnel Launcher Datajack Multitool Makeshift Sword Shrapnel Trap Peak State ------------ > --- POWER ------------ Makeshift Power Source > --- PROPULSION ------- Light Treads Light Treads > --- UTILITY ---------- Makeshift Heavy Armor Plating > --- WEAPON ----------- Subdweller Machine Gun Subdweller Machine Gun > --- INVENTORY -------- Huge Storage Unit Structural Scanner Seismic Detector Subdweller Shrapnel Launcher Multitool [Rating: 22] Favorites ----------- Power Subdweller Power Source Engine Subdweller Power Source Propulsion Light Treads Treads Light Treads Wheel Subdweller Monowheel Utility Scrap Shield Device Makeshift System Restoration Module Storage Large Storage Unit Processor Visual Processing Unit Hackware Hacking Suite Protection Scrap Shield Weapon Subdweller Machine Gun Energy Gun EM Pulse Gun Energy Cannon Subdweller Beam Cannon Ballistic Gun Subdweller Machine Gun Ballistic Cannon Advanced Assault Cannon Launcher Subdweller Shrapnel Launcher Special Weapon Mining Laser Slashing Weapon Makeshift Sword Build | -11 -10 -10 -10 -7 ------- Run | Yrd Mat Min Sub Rec Slots Evolved . | . . . . . Power . | . . . . . Propulsion . | . . . . . Utility . | . . . . . Weapon . | . . . . . Parts Attached 58 | 4 11 5 32 6 Power 11 | . 2 1 8 . Engine 11 | . 2 1 8 . Core . | . . . . . Reactor . | . . . . . Propulsion 11 | 2 1 . 6 2 Treads 8 | 2 1 . 5 . Leg . | . . . . . Wheel 3 | . . . 1 2 Hover . | . . . . . Flight . | . . . . . Utility 13 | . 4 2 6 1 Device 4 | . 1 1 2 . Storage 2 | . 1 . 1 . Processor 1 | . 1 . . . Hackware 1 | . 1 . . . Protection 5 | . . 1 3 1 Artifact . | . . . . . Weapon 23 | 2 4 2 12 3 Energy Gun 1 | . . . 1 . Energy Cannon 6 | . 2 2 2 . Ballistic Gun 11 | 2 1 . 6 2 Ballistic Cannon 1 | . . . . 1 Launcher 2 | . . . 2 . Special Weapon 1 | . 1 . . . Impact Weapon . | . . . . . Slashing Weapon 1 | . . . 1 . Piercing Weapon . | . . . . . Special Melee Weapon . | . . . . . Unidentified Prototypes . | . . . . . Parts Lost 5 | . . . 4 1 Power 2 | . . . 1 1 Propulsion . | . . . . . Utility 2 | . . . 2 . Weapon 1 | . . . 1 . Highest Loss Streak 2 | . . . 2 1 To Critical Strikes . | . . . . . Average Backups 9 | 1 11 14 6 20 Power . | . . . . 3 Propulsion . | . 1 3 . 2 Utility 4 | . 5 5 3 8 Weapon 2 | . 3 4 1 4 Tool/Special . | . . . . . Unused Backups 26 | . 6 1 3 16 Power 3 | . . . . 3 Propulsion 1 | . 1 . . . Utility 16 | . 5 1 2 8 Weapon 4 | . . . 1 3 Tool/Special 2 | . . . . 2 Average Slot Usage (%) 90 | . 90 100 87 99 Engine 13 | . 10 14 13 13 Treads 25 | . 27 28 26 15 Wheel 2 | . . . 1 12 Device 2 | . 1 3 2 5 Storage 6 | . 10 14 3 14 Hackware 2 | . 11 8 . . Protection 8 | . . 1 11 8 Energy Cannon 13 | . 21 26 11 9 Ballistic Gun 11 | . 3 . 15 9 Peak Build Rating 22 | 4 10 10 22 22 Average Rating 13 | 3 8 9 13 20 On Entrance 8 | . 4 10 8 18 Naked Turns . | . . . . . Heaviest Build 106 | 3 31 34 106 102 Greatest Support 40 | 20 40 40 40 40 Greatest Overweight (x) 5 | . 1 . 5 5 Average Overweight (x) . | . . . . 4 Largest Inventory Capacity 25 | 5 15 15 25 25 Average Capacity 11 | 5 12 15 8 25 Most Carried 25 | 5 15 15 25 25 Average Carried 10 | 2 11 14 7 24 Final Capacity 25 | 5 15 15 25 25 Final Carried 25 | 5 14 15 25 25 Class Distribution -------------------- 51% | Subdweller-Mutant 31% | Mutant 16% | Derelict-Mutant Dominant Class ---------------- Mutant | -10/Materials Mutant | -10/Mines Subdweller-Mutant | -10/Subcaves Mutant | -7/Recycling Resources | -11 -10 -10 -10 -7 ----------- Run | Yrd Mat Min Sub Rec Matter Collected 1666 | 276 204 70 952 164 Remotely . | . . . . . Salvage Created 1869 | 70 405 100 1189 105 Parts 128 | 8 32 4 79 5 Haulers Intercepted 1 | . 1 . . . Recyclers Shooed 4 | 1 2 1 . . Parts Field Recycled . | . . . . . Retrieved Matter . | . . . . . Parts Self-Destructed 16 | . . . 16 . Prevented . | . . . . . Kills | -11 -10 -10 -10 -7 ------- Run | Yrd Mat Min Sub Rec Combat Hostiles Destroyed 41 | . 8 2 29 2 Guns 16 | . 3 . 12 1 Cannons 20 | . 5 2 12 1 AOE 4 | . . . 4 . Classes Destroyed 12 | 1 7 . 4 . Builder 2 | . 1 1 . . Tunneler 3 | 3 . . . . Hauler 1 | . 1 . . . Recycler 2 | . 2 . . . Operator 2 | . 2 . . . Turret 2 | . . . 2 . Watcher 1 | . 1 . . . Swarmer 11 | . 7 . 4 . Grunt 3 | . 1 2 . . Sentry 3 | . . . 1 2 Artisan 1 | . . . 1 . Subdweller 24 | . . . 24 . Best Kill Streak 6 | 3 3 2 6 1 Combat Bots Only 4 | . 3 2 4 1 Max Kills in Single Turn 4 | 1 1 1 4 1 Gunslinging . | . . . . . Exploded 4 | . . . 4 . Melee . | . . . . . Uniques/NPCs Destroyed . | . . . . . Combat | -11 -10 -10 -10 -7 -------- Run | Yrd Mat Min Sub Rec Hostile Shots Fired 275 | . 29 1 152 93 Missed 105 | . 9 . 55 41 Hits 170 | . 20 1 97 52 Projectile 170 | . 20 1 97 52 AOE 4 | . . . 4 . Critical Strikes 3 | . . . 3 . Damage Taken 2701 | . 169 10 2119 403 Core 250 | . 28 . 137 85 Absorbed by Shields . | . . . . . Core Remaining (%) 100 | 100 . . . . Volleys Fired 232 | 9 39 11 140 33 Largest 2 | 2 2 2 2 2 Hottest 160 | 40 120 120 160 160 Shots Fired 406 | 18 63 16 263 46 Gun 185 | 18 12 . 143 12 Cannon 200 | . 40 10 116 34 Launcher 4 | . . . 4 . Special 17 | . 11 6 . . Kinetic 208 | 18 12 . 143 35 Thermal 194 | . 51 16 116 11 Explosive . | . . . . . Electromagnetic 4 | . . . 4 . Robot Hit Streak 24 | 4 8 7 24 10 Robot Miss Streak 4 | 2 4 . 2 3 Penetration Max . | . . . . . Secondary Targets 4 | . 2 . 2 . Max Gunslinging Chain 1 | . 1 . 1 . Shots Hit Robots 227 | 12 29 5 163 18 Core Hits 78 | 5 16 3 49 5 Critical Kills 2 | . . . 2 . Critical Parts Destroyed . | . . . . . Critical Strikes 4 | . . . 3 1 Meltdown 1 | . . . 1 . Destroy 2 | . . . 2 . Blast 1 | . . . . 1 Melee Attacks . | . . . . . Impact . | . . . . . Slashing . | . . . . . Piercing . | . . . . . Sneak Attacks . | . . . . . Combat Hostiles . | . . . . . Follow-up Attacks . | . . . . . Damage Inflicted 5215 | 126 509 110 4029 441 Guns 2055 | 126 115 . 1680 134 Cannons 2645 | . 394 110 1834 307 Explosions 515 | . . . 515 . Melee . | . . . . . Ramming . | . . . . . Kinetic 2694 | 126 115 . 2122 331 Thermal 2490 | . 394 110 1876 110 Explosive . | . . . . . Electromagnetic 31 | . . . 31 . Impact . | . . . . . Slashing . | . . . . . Piercing . | . . . . . Highest Corruption 1 | . 1 1 1 . Average Corruption 1 | . 1 1 1 . Corruption Purged 1 | . . . 1 . Corruption Blocked . | . . . . . Effects 57 | . 2 5 50 . Message Errors 12 | . 1 2 9 . Matter Fused 14 | . . . 14 . Heat Flow Errors 5 | . 1 . 4 . Energy Discharges 5 | . . . 5 . Parts Fused 1 | . . . 1 . Data Loss (minor) 8 | . . 1 7 . Data Loss (major) 6 | . . 2 4 . Misfires 6 | . . . 6 . Overload Shots . | . . . . . Overflow Damage 36 | . 15 . 11 10 Projectiles 25 | . 15 . . 10 Explosions 11 | . . . 11 . Melee . | . . . . . Knockbacks 2 | . . . . 2 Impact . | . . . . . Kinetic 1 | . . . . 1 Secondary 1 | . . . . 1 Self-Inflicted Damage . | . . . . . Shots . | . . . . . Rammed . | . . . . . Targets Rammed . | . . . . . Kicked . | . . . . . Crushed . | . . . . . Highest Temperature 327 | . 304 144 327 136 Average Temperature 77 | . 86 37 100 40 Received Heat Transfer 757 | . 12 6 613 126 Effects 1 | . . . 1 . Interference 1 | . . . 1 . Siege Activations . | . . . . . Martial Activations . | . . . . . Shielding Activations . | . . . . . Robots Disrupted . | . . . . . Combat Hostiles . | . . . . . Robots Corrupted . | . . . . . Combat Hostiles . | . . . . . Parts Fried . | . . . . . Impact Corruptions . | . . . . . Robots Melted 1 | . . . 1 . Combat Hostiles 1 | . . . 1 . Parts Melted 2 | . 1 . 1 . Heat Transferred 4083 | . 814 222 2899 148 Parts Sabotaged . | . . . . . Parts Stolen . | . . . . . Parts Stripped . | . . . . . Power Chain Reactions 1 | . . . 1 . Alert | -11 -10 -10 -10 -7 ------- Run | Yrd Mat Min Sub Rec Maximum Alert Level . | . . . . . Low Security (%) 100 | 100 100 100 . 100 Level 1 . | . . . . . Level 2 . | . . . . . Level 3 . | . . . . . Level 4 . | . . . . . Level 5 . | . . . . . High Security . | . . . . . Max Security . | . . . . . Peak Influence 114 | 10 114 43 . 69 Initial 49 | . . 39 . 49 Average 16 | . 23 6 . 17 Influence Increases 997 | 15 393 88 274 227 Destroy 0b10 Robot/C 460 | . 160 60 200 40 Destroy 0b10 Robot/NC 55 | 15 35 5 . . Destroy Leader 44 | . 34 . 10 . Allied During Kill 9 | . . 5 4 . Successful Hack 32 | . 18 . . 14 Select Force Hacks 210 | . 60 . . 150 Destroy Structure 37 | . 11 3 . 23 Lose Combat Pursuer 150 | . 75 15 60 . Influence Decreases 997 | 15 291 147 214 330 Entered New Map 140 | . . 63 23 54 Time Decay 834 | 15 291 84 171 273 Lost Part 23 | . . . 20 3 Squads Dispatched 5 | . 4 1 . . Investigation 3 | . 3 . . . Extermination . | . . . . . Reinforcement 1 | . 1 . . . Assault 1 | . . 1 . . Garrison . | . . . . . Intercept . | . . . . . Searches Triggered . | . . . . . Construction Impeded . | . . . . . Haulers Reinforced . | . . . . . Active Scanning Responses . | . . . . . Cargo Convoy Interrupts . | . . . . . Stealth | -11 -10 -10 -10 -7 --------- Run | Yrd Mat Min Sub Rec Distress Signals 4 | . 2 2 . . Communications Jammed . | . . . . . Distress Signals . | . . . . . Times Spotted 63 | . 19 3 38 3 Peak Tracking Total 6 | . 5 1 6 1 Tactical Retreats 6 | . 3 1 2 . Traps | -11 -10 -10 -10 -7 ------- Run | Yrd Mat Min Sub Rec Traps Triggered 4 | . 3 . 1 . Indirectly . | . . . . . Trap Hack Attempts . | . . . . . Triggered . | . . . . . Disarmed . | . . . . . Reprogrammed . | . . . . . Reused 1 | . . . 1 . Traps Extracted . | . . . . . Installed 2 | . . . 2 . Triggered 1 | . . . 1 . Most Traps Carried 1 | . . . 1 1 Machines | -11 -10 -10 -10 -7 ---------- Run | Yrd Mat Min Sub Rec Machines Disabled 5 | . . . 5 . Max in Single Turn 3 | . . . 3 . Machines Repaired . | . . . . . Machines Dismantled . | . . . . . Machines Sabotaged . | . . . . . Overloaded Fab Kills . | . . . . . Hacking | -11 -10 -10 -10 -7 --------- Run | Yrd Mat Min Sub Rec Machines Accessed 21 | . 9 . 2 10 Terminals 12 | . 7 . . 5 Fabricators . | . . . . . Repair Stations . | . . . . . Recycling Units 7 | . 2 . . 5 Scanalyzers . | . . . . . Garrison Access . | . . . . . Total Hacks 55 | . 27 . 12 16 Successful 40 | . 19 . 12 9 Failed 15 | . 8 . . 7 Catastrophic . | . . . . . Database Lockouts . | . . . . . Manual 34 | . 21 . . 13 Terminals 36 | . 25 . . 11 Fabricators . | . . . . . Repair Stations . | . . . . . Recycling Units 7 | . 2 . . 5 Scanalyzers . | . . . . . Garrison Access . | . . . . . Terminal Hacks 23 | . 10 . 12 1 Record 11 | . . . 11 . Part Schematic 2 | . 2 . . . Robot Analysis 3 | . 3 . . . Prototype ID Bank 4 | . 3 . . 1 Locate Traps 2 | . 2 . . . Proto ID Catalog 1 | . . . 1 . Fabricator Hacks . | . . . . . Repair Station Hacks . | . . . . . Recycling Unit Hacks . | . . . . . Scanalyzer . | . . . . . Garrison Access Hacks . | . . . . . Unauthorized Hacks 17 | . 9 . . 8 Terminals 10 | . 7 . . 3 Botnet 2 | . 2 . . . Skim 8 | . 5 . . 3 Fabricators . | . . . . . Repair Stations . | . . . . . Recycling Units 7 | . 2 . . 5 Tunnel 7 | . 2 . . 5 Scanalyzers . | . . . . . Garrison Access . | . . . . . Data Cores Recovered 1 | . 1 . . . Used . | . . . . . Hacking Detections 12 | . 7 . . 5 Full Trace Events 1 | . . . . 1 Feedback Events . | . . . . . Feedback Blocked . | . . . . . Robot Schematics Acquired . | . . . . . Robots Built . | . . . . . Authchips . | . . . . . Time . | . . . . . Total Robot Build Rating . | . . . . . Part Schematics Acquired 2 | . 2 . . . Parts Built . | . . . . . Authchips . | . . . . . Time . | . . . . . Total Part Build Rating . | . . . . . Parts Repaired . | . . . . . Time . | . . . . . Parts Recycled . | . . . . . Recycled Matter . | . . . . . Retrieved Matter . | . . . . . Retrieved Components . | . . . . . Parts Scanalyzed . | . . . . . Part Schematics Acquired . | . . . . . Parts Damaged . | . . . . . Bothacking | -11 -10 -10 -10 -7 ------------ Run | Yrd Mat Min Sub Rec Used RIF Installer . | . . . . . Robots Hacked . | . . . . . Non-combat . | . . . . . Combat . | . . . . . Robot Hacks Applied . | . . . . . Relay Couplers Released . | . . . . . Fabnet Peak Effective % . | . . . . . Robots Rewired . | . . . . . Allies Hacked . | . . . . . Hacks Repelled . | . . . . . Allies | -11 -10 -10 -10 -7 -------- Run | Yrd Mat Min Sub Rec Total Allies 4 | . . 4 . . Largest Group 3 | . . 3 1 . Highest-Rated Group 47 | . . 47 31 . Highest-Rated Ally 31 | . . 31 31 . Total Orders . | . . . . . Ally Attacks 21 | . . 4 17 . Total Damage 341 | . . 64 277 . Kills 4 | . . 1 3 . Allies Corrupted . | . . . . . Allies Melted . | . . . . . Intel | -11 -10 -10 -10 -7 ------- Run | Yrd Mat Min Sub Rec Active Infowar (turns) 932 | . 108 196 208 420 Optics 19 | . 19 . . . Structural 18 | . . . 18 . Seismic 914 | . 108 196 190 420 Robot Analysis Total 3 | . 3 . . . Derelict Logs Recovered 4 | . . 1 3 . Drone Launches . | . . . . . Drone Recoveries . | . . . . . Exploration | -11 -10 -10 -10 -7 ------------- Run | Yrd Mat Min Sub Rec Turns Passed 9450 | 64 1102 803 6460 1021 Spaces Moved 5214 | 53 713 442 3444 562 Core 309 | 52 257 . . . Treads 4039 | 1 456 442 3127 13 Legs . | . . . . . Wheels 866 | . . . 317 549 Hover . | . . . . . Flight . | . . . . . Fastest Speed 50 | 50 50 160 160 150 Average Speed 158 | 52 120 160 168 157 Slowest Speed 360 | 160 240 160 360 360 Overloaded Moves . | . . . . . Propulsion Burnouts . | . . . . . Robots Hopped . | . . . . . Potential Cave-ins . | . . . . . Cave-ins Triggered . | . . . . . Exploration Rate (%) 73 | 3 94 82 98 89 Regions Visited 4 Branch Regions 3 Pre-discovered Areas 10 | . 4 . 1 5 Known Exits Taken 1 | . . 1 . . Unknown Exits Taken 3 | 1 1 . 1 . Scrap Searched 16 | . . 2 14 . Spaces Dug 18 | . 9 2 1 6 Terrain Destroyed 87 | . 11 4 57 15 Melee . | . . . . . Projectile 40 | . 11 4 10 15 AOE 47 | . . . 47 . Terrain Rammed . | . . . . . Walls Destroyed . | . . . . . Machines Disabled . | . . . . . Actions | -11 -10 -10 -10 -7 --------- Run | Yrd Mat Min Sub Rec Total 5956 | 71 874 510 3855 646 Wait 241 | . 65 39 114 23 Move 5210 | 52 712 441 3443 562 Hop . | . . . . . Pick Up 79 | 6 24 5 37 7 Fast Attach 25 | 3 5 . 16 1 Attach 14 | 1 5 1 6 1 Detach 2 | . 2 . . . Swap 54 | . 7 7 29 11 Drop 72 | . 15 6 43 8 Fire 232 | 9 39 11 140 33 Melee . | . . . . . Ram . | . . . . . Kick . | . . . . . Crush . | . . . . . Escape Stasis . | . . . . . Rewire . | . . . . . Trap 2 | . . . 2 . Miscellaneous 25 | . . . 25 . Route ------- -11/Scrapyard -10/Materials (discovered 6 exits: *Mat x3 / [*Min x2] / Sub) -10/Mines (discovered 3 exits: *Mat / [*Exi] / *Sub) -10/Subcaves (discovered 3 exits: [*Mat x2] / *Rec) -7/Recycling (discovered 1 exit: [*Fac]) History --------- Turn | Location | Event 9 | -11/Scrapyard | Discovered new exit (range 14) 65 | -11/Scrapyard | Entered Materials 65 | -10/Materials | Discovered new exit (range 15) 191 | -10/Materials | Discovered new exit (range 9) 241 | -10/Materials | Met 8R-AWN 345 | -10/Materials | Build established: Mutant 644 | -10/Materials | Discovered new exit (range 16) 728 | -10/Materials | Identified exit to Materials 784 | -10/Materials | Learned Storage stockpile data 829 | -10/Materials | Learned location of Mines (-9) 865 | -10/Materials | Learned Storage emergency access door positions 893 | -10/Materials | Learned Storage emergency access door positions 911 | -10/Materials | Learned 4 Subcaves zone layouts 919 | -10/Materials | Learned location of Recycling (-7) 936 | -10/Materials | Identified exit to Subcaves 965 | -10/Materials | Learned 4 Recycling zone layouts 1056 | -10/Materials | Learned 4 Subcaves zone layouts 1167 | -10/Materials | Entered Mines 1168 | -10/Mines | Followed 8R-AWN into the Mines 1266 | -10/Mines | Discovered exit to Materials (range 9) 1326 | -10/Mines | Received a Rocket Launcher from a helpful Derelict 1420 | -10/Mines | Found DCF Scrap (13 items) 1663 | -10/Mines | Assisted by bots powering up and referring to "LRC-V3" 1722 | -10/Mines | Discovered new exit (range 5) 1821 | -10/Mines | Excavation squad dispatched 1821 | -10/Mines | A large section of the Mines collapsed 1895 | -10/Mines | Met a Derelict testing a Signal Generator 1934 | -10/Mines | Discovered exit to Subcaves (range 3) 1970 | -10/Mines | Entered Subcaves 1970 | -10/Subcaves | Accompanied by 1 ally 2046 | -10/Subcaves | Learned location of Zion (-7) 2046 | -10/Subcaves | Met a Zionite searching for "candidates" 2140 | -10/Subcaves | Discovered new exit (range 15) 2261 | -10/Subcaves | A swath of the cavern ceiling suddenly collapsed 2669 | -10/Subcaves | Build established: Subdweller-Mutant 2763 | -10/Subcaves | Shifting Twisted Machinery released Piercing Trap 2764 | -10/Subcaves | Shifting Twisted Machinery released Sub. Shrapnel Launcher 3648 | -10/Subcaves | Visited 4L-MR0's lab 3714 | -10/Subcaves | Shifting Twisted Machinery released Shrapnel Trap 3815 | -10/Subcaves | Shifting Twisted Machinery released Battle Rifle 3889 | -10/Subcaves | Ambushed by Subdweller buried in earth 3891 | -10/Subcaves | Ambushed by Subdweller buried in earth 4569 | -10/Subcaves | Learned 2 Materials zone layouts 4649 | -10/Subcaves | Ambushed by Subdweller buried in earth 6011 | -10/Subcaves | Discovered new exit (range 13) 6201 | -10/Subcaves | Core integrity fell below 50% 6278 | -10/Subcaves | A swath of the cavern ceiling suddenly collapsed 6430 | -10/Subcaves | Learned 2 Materials zone layouts 6453 | -10/Subcaves | Visited Clippyterm 6457 | -10/Subcaves | Learned Research security intel 6532 | -10/Subcaves | Shifting Twisted Machinery released Scrap Shield 6535 | -10/Subcaves | Shifting Twisted Machinery released Battle Rifle 6726 | -10/Subcaves | Discovered new exit (range 7) 7397 | -10/Subcaves | Found Gun Armor 7680 | -10/Subcaves | Build established: Derelict-Mutant 8430 | -10/Subcaves | Entered Recycling 8477 | -7/Recycling | Scanned before Scraplab entrance 8732 | -7/Recycling | Discovered new exit (range 12) 9192 | -7/Recycling | Build established: Mutant 9437 | -7/Recycling | Core integrity fell below 20% 9451 | -7/Recycling | Destroyed by Y-54 Guardian with Gatling Laser Last Messages --------------- 09176_ Acquired Corrupted Authchip [Propulsion]. 09187_ R-06 Scavenger collects Broken Sub. Monowheel. 09195_ Connecting with Terminal... >>Trojan(Skim) Trojan loaded successfully. Testing... Terminal linked with 2 systems. Please expand to 2 more systems! >>Prototypes Downloading prototype IDs... Biomechanical Wings Prc. Assault Rifle 09305_ Connecting with Terminal... 09376_ Sub. Monowheel shoots sparks and powers down. 09381_ U-05 Engineer builds a Wall. 09393_ Connecting with Terminal... 09428_ Destroyed Structural Scanner. 09428_ U-05 Engineer knocked back. 09428_ Y-54 Guardian springs to life. 09447_ Sub. Power Source destroyed. Map ----- +----------------------------------------------------+ | ??# # #??????# #??????? | | ??# """ # #??????# """#??????? | | ??# "T" # #??????# """#??????? | | ??# " " # #??????# """##?????# | | ??# # #??????# #####??# | | ??# # #############/### ###### | | ??# # % | | ??# + | | ??# """ # | | ??#""""" # ###+#########+##### ## | | ??#""""" # ## #???????????# #? | | ??#""""" # ## #???????????# #? | | ??# """ # ## #???????????# #? | | ??# # # ##??????????# #? | | ??# + ## #??????????# #? | | ??############ ## ##??????????# ## | | ?????????????#%## #???????????# !! | | ?????????????# %# #???????????# ! | | ?????????????# ## #???????????# !! | | ????????????##Y## #???????????# ## | | ????????????#; ## #???????????# #? | | ????????????#; ## #??????????## ## | | ????#########; ;# #??????????# # | | ????# #######??????????# | | ????# ;#???????????????# | | ????# @;#???????????????# | | ????# "" ##???????????????# # | | ????# """#?????????##########+### | | ????# T"#?????????# | | ????# """#?????????# | | ????# "" #?????????# | | ????# #?????????# " """"" | | ????# #?????????# """"""""" | | ????############?????????# """ """ | | ?????????????????????????############## | | ??????????????????????????????????????? | | ??????????????????????????????????????? | | | | | | | | | | | | | | | | | | | | | | | | | | | +----------------------------------------------------+ Best States ------------- Heat Dissipation 25 Energy Generation 15 Energy Capacity 250 Matter Stores 300 Matter Capacity 300 Sight Range 18 Terrain Scan Density 10 Armor Coverage 800 Evasion (%) 50 Recoil Reduction 2 Offensive Hacking 10 Authchip Count 1 Item Schematics ----------------- Hcp. Storage Unit | -10/Materials | Hacked Huge Storage Unit | -10/Materials | Hacked Robot Schematics ------------------ None Fabricated ------------ Nothing Repaired ---------- Nothing Alien Tech Used ----------------- None Achievements -------------- None Challenges ------------ None Game ------ Seed BoltHardenedSaw Manual? 0 Play Time 00:56:33 Cumulative 315.3 hours Start 2025.06.29 @ 22:42:18 End 2025.06.29 @ 23:53:35 Sessions 3 Manual Loads 0 Difficulty Rogue Special Mode None Game No. 160 Rogue 160 Adventurer 0 Explorer 0 Win Type - Total 1 Types 0/0/0/0/1/0/0/0/0/0 Lore% 79 Gallery% 77 Achievement% 66 Wizard Run 0 Options --------- Layout 0 ASCII 0 Keyboard 0 Movement Mouse Keybinds 0 Fullscreen 1 Font 24/Smallcaps Map View 183x50 Zoom Use 0% Tactical HUD 1 Map Filters NONE Filters NONE Steam 0 RUN: 9468acc1-a188-4eb9-b456-155450abbb9b